Cogmind - Beta 13 X1 @@@ ROGUE MODE // 2023.11.07 @ 02:31:18 // Winter2019/RPGLIKE Player: ArabianSandBoa Result: Destroyed by S-27 Virus with Autogun Performance ------------- Evolutions (3) 1500 Regions Visited (5) 1000 Robots Destroyed (137) 685 Value Destroyed (4004) 4004 Prototype IDs (20) 400 Alien Tech Used (0) 0 Bonus (864) 864 TOTAL SCORE: 8453 Bonus ------- High Alert Combat Kills 664 Entered Garrisons 200 Cogmind --------- Core Integrity 0/800 Matter 80/300 Energy 140/140 System Corruption 3% Temperature Cool (2) Movement Walking (271) Ox2 Location -7/Garrison Parts ------- > --- POWER (2) -------- Engine Construct > --- PROPULSION (4) --- Aluminum-Mono Exoskeleton > --- UTILITY (6) ------ Armored Scrap Engine Humpback Cobbler Unit > --- WEAPON (3) ------- Subdweller Shrapnel Launcher Gatling KE Construct/G Kinetic Gauss Construct/G > --- INVENTORY (31) --- Protomatter-38 Protomatter-34 Arachnoskeleton Medium Matter Pod (100) Large Matter Pod (150) Visual Processing Unit Launcher Guidance Computer Target Analyzer Shock Absorption System Authchip [R/NC] Authchip [R/Combat] Authchip [R/Combat] Authchip [R/Combat] Authchip [R/Combat] Authchip [R/Combat] Authchip [R/Combat] Authchip [R/Combat] Relay Coupler [NC] Relay Coupler [Grunt] (54) High-powered Tractor Beam Recalibrator Riot Gun Riot Gun Subdweller Shrapnel Launcher Multitool Hammer Peak State ------------ > --- POWER ------------ Engine Construct > --- PROPULSION ------- Aluminum-Mono Exoskeleton > --- UTILITY ---------- Armored Scrap Engine Humpback Cobbler Unit > --- WEAPON ----------- Directed Particle Construct/G Gatling KE Construct/G Kinetic Gauss Construct/G > --- INVENTORY -------- Protomatter Protomatter Protomatter Arachnoskeleton Medium Matter Pod Medium Matter Pod Large Matter Pod Visual Processing Unit Launcher Guidance Computer Target Analyzer Shock Absorption System Authchip [R/NC] Authchip [R/Combat] Authchip [R/Combat] Authchip [R/Combat] Authchip [R/Combat] Authchip [R/Combat] Authchip [R/Combat] Relay Coupler [NC] Relay Coupler [Grunt] High-powered Tractor Beam Recalibrator Riot Gun Riot Gun Subdweller Shrapnel Launcher Subdweller Shrapnel Launcher Multitool Hammer [Rating: 53] Favorites ----------- Power Ion Engine Engine Ion Engine Propulsion Compact Wheel Leg Constructs Wheel Compact Wheel Utility Humpback Device Armored Scrap Engine Storage Humpback Processor Targeting Computer Protection Scrap Shield Weapon Constructs Energy Gun Medium Laser Ballistic Gun Constructs Ballistic Cannon Slug Cannon Launcher Subdweller Shrapnel Launcher Build | -11 -10 -10 -9 -7 -7 ------- Run | Jun Mat Sub Rec Fac Gar Slots Evolved 11 | 3 2 . 4 2 . Power 1 | . . . 1 . . Propulsion 3 | . 1 . 2 . . Utility 5 | 2 1 . 1 1 . Weapon 2 | 1 . . . 1 . Parts Attached 40 | 6 19 10 3 1 1 Power 1 | . 1 . . . . Engine 1 | . 1 . . . . Core . | . . . . . . Reactor . | . . . . . . Propulsion 3 | 2 1 . . . . Treads . | . . . . . . Leg . | . . . . . . Wheel 3 | 2 1 . . . . Hover . | . . . . . . Flight . | . . . . . . Utility 19 | 2 9 4 3 1 . Device 7 | 2 2 1 1 1 . Storage 6 | . 5 1 . . . Processor 2 | . . . 2 . . Hackware . | . . . . . . Protection 4 | . 2 2 . . . Artifact . | . . . . . . Weapon 17 | 2 8 6 . . 1 Energy Gun 2 | 2 . . . . . Energy Cannon . | . . . . . . Ballistic Gun 6 | . 4 2 . . . Ballistic Cannon 4 | . 2 2 . . . Launcher 5 | . 2 2 . . 1 Special Weapon . | . . . . . . Impact Weapon . | . . . . . . Slashing Weapon . | . . . . . . Piercing Weapon . | . . . . . . Special Melee Weapon . | . . . . . . Unidentified Prototypes . | . . . . . . Corrupted Parts 1 | . 1 . . . . System Corruption 6 | . 6 . . . . Parts Lost . | . . . . . . Power . | . . . . . . Propulsion . | . . . . . . Utility . | . . . . . . Weapon . | . . . . . . Highest Loss Streak . | . . . . . . To Critical Strikes . | . . . . . . Average Slot Usage (%) 70 | . 93 78 52 49 49 Engine 8 | . 12 11 5 6 6 Leg 1 | . . . 2 6 6 Wheel 13 | . 15 22 4 . . Device 8 | . 27 . 7 13 13 Storage 9 | . 7 13 7 6 6 Processor 2 | . . . 5 . . Protection 5 | . 4 12 . . . Energy Gun 4 | . 5 . 9 . 2 Ballistic Gun 6 | . 7 5 5 13 13 Ballistic Cannon 6 | . 9 11 . . . Launcher 1 | . 2 1 . . . Naked Turns . | . . . . . . Heaviest Build 238 | 9 19 238 217 227 235 Greatest Support 82 | 16 38 32 82 82 82 Greatest Overweight (x) 10 | 1 . 7 10 2 2 Average Overweight (x) 3 | . . 5 3 2 2 Largest Inventory Capacity 31 | . 1 31 31 31 31 Average Capacity 22 | . . 23 31 31 31 Most Carried 31 | . 1 29 31 31 31 Average Carried 15 | . . 16 19 27 29 Final Capacity 31 | . 1 31 31 31 31 Final Carried 31 | . 1 29 25 31 28 Scrap Engine Consumption 72 | . . . 60 6 6 Constructs Created 5 | . . . 4 . 1 Constructs Modified 20 | . . . 19 . 1 Class Distribution -------------------- 38% | Hauler-Construct 32% | Hauler-Mutant 26% | Mutant Dominant Class ---------------- Mutant | -10/Materials Hauler-Mutant | -10/Subcaves Hauler-Construct | -9/Recycling Hauler-Construct | -7/Factory Hauler-Construct | -7/Garrison Resources | -11 -10 -10 -9 -7 -7 ----------- Run | Jun Mat Sub Rec Fac Gar Matter Collected 4477 | 260 1333 1453 953 216 262 Remotely 116 | 51 65 . . . . Salvage Created 4219 | 184 1390 253 1847 167 378 Parts 238 | 16 99 32 61 11 19 Haulers Intercepted 2 | . 2 . . . . Recyclers Shooed 10 | 1 3 . 6 . . Parts Field Recycled . | . . . . . . Retrieved Matter . | . . . . . . Parts Self-Destructed 13 | . . 13 . . . Prevented . | . . . . . . Kills | -11 -10 -10 -9 -7 -7 ------- Run | Jun Mat Sub Rec Fac Gar Combat Hostiles Destroyed 78 | . 26 20 10 5 17 Guns 40 | . 15 2 10 5 8 Cannons 15 | . 6 9 . . . AOE 23 | . 5 9 . . 9 Classes Destroyed 16 | 3 6 2 5 . . Worker 12 | 2 10 . . . . Builder 16 | . 9 . 7 . . Tunneler 5 | 4 . . 1 . . Hauler 2 | . 2 . . . . Recycler 17 | 1 3 . 13 . . Operator 3 | . 3 . . . . Turret 2 | . . 2 . . . Watcher 3 | . 3 . . . . Swarmer 13 | . 3 4 . . 6 Grunt 38 | . 23 . 1 5 9 Brawler 2 | . . . 1 . 1 Sentry 5 | . . . 5 . . Demolisher 1 | . . . 1 . . Hunter 1 | . . . 1 . . Programmer 2 | . . . 1 . 1 Subdweller 16 | . . 16 . . . Best Kill Streak 13 | 4 4 9 7 5 13 Combat Bots Only 13 | . 3 7 4 5 13 Max Kills in Single Turn 4 | 1 3 4 1 1 2 Gunslinging . | . . . . . . Exploded 4 | . 2 4 . . 2 Melee . | . . . . . . Uniques/NPCs Destroyed . | . . . . . . Combat | -11 -10 -10 -9 -7 -7 -------- Run | Jun Mat Sub Rec Fac Gar Damage Taken 3206 | . 817 978 463 167 781 Core 2430 | . 664 614 392 136 624 Absorbed by Shields . | . . . . . . Redirected to Core 1821 | . 473 452 253 103 540 Redirected to Shielding 32 | . 6 26 . . . Regen/Repaired (Parts) 61 | . . . 43 8 10 Core Remaining (%) 75 | 100 . . 51 . . Volleys Fired 425 | 26 165 85 107 14 28 Largest 2 | 2 2 2 2 2 2 Hottest 120 | 100 100 76 120 101 101 Shots Fired 682 | 46 282 147 140 24 43 Gun 421 | 46 166 15 140 24 30 Cannon 201 | . 85 116 . . . Launcher 60 | . 31 16 . . 13 Special . | . . . . . . Kinetic 513 | . 201 147 98 24 43 Thermal 138 | 46 50 . 42 . . Explosive 31 | . 31 . . . . Electromagnetic . | . . . . . . Robot Hit Streak 32 | 3 18 15 32 8 10 Robot Miss Streak 5 | 5 3 1 2 3 2 Penetration Max 1 | . . . 1 . . Secondary Targets 3 | . 1 . . . 2 Max Gunslinging Chain 1 | . 1 . . . 1 Shots Hit Robots 377 | 20 146 66 95 17 33 Core Hits 221 | 8 85 31 49 13 35 Critical Kills 4 | . . 1 3 . . Critical Parts Destroyed 2 | . . . 2 . . Critical Strikes 17 | 3 6 3 5 . . Burn 7 | 3 4 . . . . Meltdown 1 | . . . 1 . . Destroy 5 | . . 1 4 . . Blast 4 | . 2 2 . . . Melee Attacks . | . . . . . . Impact . | . . . . . . Slashing . | . . . . . . Piercing . | . . . . . . Sneak Attacks . | . . . . . . Combat Hostiles . | . . . . . . Follow-up Attacks . | . . . . . . Damage Inflicted 10559 | 264 3139 2331 2615 372 1838 Guns 5097 | 264 1158 108 2615 372 580 Cannons 2101 | . 1037 1064 . . . Explosions 3361 | . 944 1159 . . 1258 Melee . | . . . . . . Ramming . | . . . . . . Kinetic 8100 | . 1846 2331 1713 372 1838 Thermal 1616 | 264 450 . 902 . . Explosive 815 | . 815 . . . . Electromagnetic 28 | . 28 . . . . Impact . | . . . . . . Slashing . | . . . . . . Piercing . | . . . . . . Highest Corruption 8 | . 6 6 8 . 3 Average Corruption 6 | . 6 6 7 . 2 Corruption Purged . | . . . . . . Corruption Blocked . | . . . . . . Effects 272 | . 9 126 132 . 5 Message Errors 60 | . 3 27 30 . . Matter Fused 76 | . 2 35 36 . 3 Heat Flow Errors 35 | . 1 15 17 . 2 Energy Discharges 42 | . 1 16 25 . . Parts Fused 1 | . 1 . . . . Data Loss (minor) 28 | . . 13 15 . . Data Loss (major) 10 | . . 6 4 . . Misfires 11 | . . 11 . . . Alerts 5 | . . 1 4 . . Weapon Failures 4 | . 1 2 1 . . Overload Shots . | . . . . . . Overflow Damage 41 | . 31 . . . 10 Projectiles 20 | . 20 . . . . Explosions 21 | . 11 . . . 10 Melee . | . . . . . . Knockbacks 13 | . 6 7 . . . Impact . | . . . . . . Kinetic 12 | . 6 6 . . . Secondary 1 | . . 1 . . . Self-Inflicted Damage 329 | . 74 171 . . 84 Shots 11 | . 4 5 . . 2 Rammed . | . . . . . . Targets Rammed . | . . . . . . Kicked . | . . . . . . Crushed . | . . . . . . Highest Temperature 310 | 310 273 258 304 120 136 Average Temperature 66 | 98 41 93 89 50 20 Received Heat Transfer 822 | . 339 99 96 99 189 Effects 1 | . . 1 . . . Interference 1 | . . 1 . . . Siege Activations . | . . . . . . Robots Corrupted . | . . . . . . Combat Hostiles . | . . . . . . Parts Fried . | . . . . . . Impact Corruptions . | . . . . . . Robots Melted 1 | . . . 1 . . Combat Hostiles . | . . . . . . Parts Melted 4 | 1 2 . 1 . . Heat Transferred 3392 | 999 1382 . 1011 . . Parts Sabotaged . | . . . . . . Parts Stolen . | . . . . . . Parts Stripped . | . . . . . . Power Chain Reactions . | . . . . . . Missiles Intercepted . | . . . . . . Alert | -11 -10 -10 -9 -7 -7 ------- Run | Jun Mat Sub Rec Fac Gar Peak Influence 1179 | 35 952 . 238 794 1179 Initial 624 | . 22 . 128 624 555 Average 322 | 16 560 . 136 705 721 Maximum Alert Level 4 | . 3 . 1 3 4 Low Security (%) 60 | 100 24 . 88 . . Level 1 9 | . 8 . 11 . . Level 2 10 | . 20 . . 53 42 Level 3 19 | . 46 . . 46 56 Level 4 . | . . . . . 1 Level 5 . | . . . . . . High Security . | . . . . . . Max Security . | . . . . . . Squads Dispatched 11 | . 10 . . 1 . Investigation 8 | . 8 . . . . Extermination . | . . . . . . Reinforcement 3 | . 2 . . 1 . Assault . | . . . . . . Garrison . | . . . . . . Intercept . | . . . . . . Searches Triggered . | . . . . . . Construction Impeded . | . . . . . . Haulers Reinforced 1 | . . . . 1 . Active Scanning Responses . | . . . . . . Cargo Convoy Interrupts . | . . . . . . Stealth | -11 -10 -10 -9 -7 -7 --------- Run | Jun Mat Sub Rec Fac Gar Distress Signals 5 | . 4 . 1 . . Communications Jammed . | . . . . . . Distress Signals . | . . . . . . Times Spotted 101 | . 39 31 9 5 17 Peak Tracking Total 8 | . 4 6 5 3 8 Tactical Retreats 4 | . 2 1 . . 1 Traps | -11 -10 -10 -9 -7 -7 ------- Run | Jun Mat Sub Rec Fac Gar Traps Triggered 5 | . 1 3 . . 1 Indirectly . | . . . . . . Trap Hack Attempts . | . . . . . . Triggered . | . . . . . . Disarmed . | . . . . . . Reprogrammed . | . . . . . . Reused . | . . . . . . Traps Extracted . | . . . . . . Installed . | . . . . . . Triggered . | . . . . . . Machines | -11 -10 -10 -9 -7 -7 ---------- Run | Jun Mat Sub Rec Fac Gar Machines Disabled 48 | . 19 5 15 3 6 Max in Single Turn 4 | . 2 4 1 1 2 Garrison Relay 1 | . . . . . 1 Machines Repaired 2 | . 2 . . . . Machines Sabotaged . | . . . . . . Overloaded Fab Kills . | . . . . . . Hacking | -11 -10 -10 -9 -7 -7 --------- Run | Jun Mat Sub Rec Fac Gar Machines Accessed 23 | . 8 2 12 1 . Terminals 12 | . 6 . 6 . . Fabricators . | . . . . . . Repair Stations . | . . . . . . Recycling Units 8 | . 2 . 6 . . Scanalyzers . | . . . . . . Garrison Access 1 | . . . . 1 . Total Hacks 82 | . 23 11 44 4 . Successful 56 | . 16 11 28 1 . Failed 25 | . 6 . 16 3 . Catastrophic 5 | . 3 . 2 . . Database Lockouts 1 | . 1 . . . . Manual 25 | . 17 . 8 . . Terminals 43 | . 17 . 26 . . Fabricators . | . . . . . . Repair Stations . | . . . . . . Recycling Units 24 | . 6 . 18 . . Scanalyzers . | . . . . . . Garrison Access 4 | . . . . 4 . Terminal Hacks 29 | . 5 11 13 . . Record 13 | . 1 10 2 . . Part Schematic 2 | . . . 2 . . Robot Analysis 7 | . 2 . 5 . . Prototype ID Bank 3 | . 1 . 2 . . Branch Access Points 1 | . . . 1 . . Terminal Index 1 | . . . 1 . . Unreport Threat 1 | . 1 . . . . Derelict Proto ID Bank 1 | . . 1 . . . Fabricator Hacks . | . . . . . . Repair Station Hacks . | . . . . . . Recycling Unit Hacks 12 | . 2 . 10 . . Report Inventory 8 | . 2 . 6 . . Retrieve Components 4 | . . . 4 . . Scanalyzer . | . . . . . . Garrison Access Hacks 1 | . . . . 1 . Unlock Access 1 | . . . . 1 . Unauthorized Hacks 14 | . 9 . 5 . . Terminals 8 | . 6 . 2 . . Botnet 1 | . 1 . . . . Sabotage 6 | . 5 . 1 . . Search 1 | . . . 1 . . Fabricators . | . . . . . . Repair Stations . | . . . . . . Recycling Units 6 | . 3 . 3 . . Mask 1 | . 1 . . . . Tunnel 5 | . 2 . 3 . . Scanalyzers . | . . . . . . Garrison Access . | . . . . . . Data Cores Recovered . | . . . . . . Used . | . . . . . . Hacking Detections 18 | . 6 . 11 1 . Full Trace Events 6 | . . . 6 . . Feedback Events . | . . . . . . Feedback Blocked . | . . . . . . Robot Schematics Acquired . | . . . . . . Robots Built . | . . . . . . Authchips . | . . . . . . Time . | . . . . . . Total Robot Build Rating . | . . . . . . Part Schematics Acquired 2 | . . . 2 . . Parts Built . | . . . . . . Authchips . | . . . . . . Time . | . . . . . . Total Part Build Rating . | . . . . . . Parts Repaired . | . . . . . . Time . | . . . . . . Parts Recycled . | . . . . . . Recycled Matter . | . . . . . . Retrieved Matter . | . . . . . . Retrieved Components 28 | . . . 28 . . Parts Scanalyzed . | . . . . . . Part Schematics Acquired . | . . . . . . Parts Damaged . | . . . . . . Bothacking | -11 -10 -10 -9 -7 -7 ------------ Run | Jun Mat Sub Rec Fac Gar Used RIF Installer . | . . . . . . Robots Hacked . | . . . . . . Non-combat . | . . . . . . Combat . | . . . . . . Robot Hacks Applied . | . . . . . . Relay Couplers Released 2 | . . . . . 2 Machine Destruction 2 | . . . . . 2 Fabnet Peak Effective % . | . . . . . . Robots Rewired 8 | . . . 8 . . Allies Hacked . | . . . . . . Hacks Repelled . | . . . . . . Allies | -11 -10 -10 -9 -7 -7 -------- Run | Jun Mat Sub Rec Fac Gar Total Allies 8 | . . . 8 . . Largest Group 8 | . . . 8 . . Highest-Rated Group 139 | . . . 139 . . Highest-Rated Ally 34 | . . . 34 . . Total Orders 1 | . . . 1 . . ROAM 1 | . . . 1 . . Ally Attacks 9 | . . . 9 . . Total Damage 455 | . . . 455 . . Kills 8 | . . . 8 . . Allies Corrupted . | . . . . . . Allies Melted . | . . . . . . Intel | -11 -10 -10 -9 -7 -7 ------- Run | Jun Mat Sub Rec Fac Gar Robot Analysis Total 7 | . 2 . 5 . . Derelict Logs Recovered 2 | . . 2 . . . Drone Launches . | . . . . . . Drone Recoveries . | . . . . . . Exploration | -11 -10 -10 -9 -7 -7 ------------- Run | Jun Mat Sub Rec Fac Gar Turns Passed 12120 | 174 2092 4925 4126 256 547 Spaces Moved 4863 | 70 1221 2338 1066 49 119 Core 1 | 1 . . . . . Treads 95 | . . . 95 . . Legs 686 | 1 . . 517 49 119 Wheels 4081 | 68 1221 2338 454 . . Hover . | . . . . . . Flight . | . . . . . . Fastest Speed 80 | 80 100 100 190 271 271 Average Speed 187 | 99 100 176 306 271 271 Slowest Speed 573 | 120 100 205 573 271 271 Overloaded Moves . | . . . . . . Propulsion Burnouts . | . . . . . . Robots Hopped . | . . . . . . Cave-ins Triggered . | . . . . . . Exploration Rate (%) 54 | 5 99 98 98 1 23 Regions Visited 5 Branch Regions 2 Pre-discovered Areas 7 | . 2 2 3 . . Known Exits Taken 2 | . . . 1 1 . Unknown Exits Taken 3 | 1 1 1 . . . Scrap Searched 5 | . . 5 . . . Spaces Dug 18 | . 2 15 1 . . Terrain Destroyed 447 | . 186 193 21 . 47 Melee . | . . . . . . Projectile 42 | . 3 18 21 . . AOE 405 | . 183 175 . . 47 Terrain Rammed . | . . . . . . Walls Destroyed . | . . . . . . Machines Disabled . | . . . . . . Actions | -11 -10 -10 -9 -7 -7 --------- Run | Jun Mat Sub Rec Fac Gar Total 7207 | 126 1814 3009 1797 151 310 Wait 1580 | 22 373 503 486 79 117 Move 4858 | 69 1220 2337 1065 48 119 Hop . | . . . . . . Pick Up 61 | . . 29 16 3 13 Fast Attach 28 | 6 16 6 . . . Attach 7 | . . 2 3 1 1 Detach 3 | . 1 1 1 . . Swap 5 | . 3 2 . . . Drop 70 | 3 13 12 24 2 16 Fire 425 | 26 165 85 107 14 28 Melee . | . . . . . . Ram . | . . . . . . Kick . | . . . . . . Crush . | . . . . . . Escape Stasis 5 | . . . . . 5 Rewire 78 | . . . 78 . . Trap . | . . . . . . Miscellaneous 87 | . 23 32 17 4 11 Route ------- -11/Junkyard -10/Materials (discovered 6 exits: [*Mat x3] / [*Min x2] / *Sub) -10/Subcaves (discovered 3 exits: [*Mat x2] / *Rec) -9/Recycling -7/Factory -7/Garrison History --------- Turn | Location | Event 2 | -11/Junkyard | Discovered new exit (range 1) 23 | -11/Junkyard | Upgraded with Utility slot (x2) 23 | -11/Junkyard | Upgraded with Weapon slot (x1) 175 | -11/Junkyard | Entered Materials 317 | -10/Materials | Build established: Mutant 469 | -10/Materials | Discovered new exit (range 8) 512 | -10/Materials | Discovered new exit (range 12) 580 | -10/Materials | Discovered new exit (range 16) 828 | -10/Materials | Reached level 2 830 | -10/Materials | Upgraded with Utility slot (x1) 900 | -10/Materials | Discovered new exit (range 12) 1008 | -10/Materials | Reached level 3 1040 | -10/Materials | Core integrity fell below 50% 1215 | -10/Materials | Central database locked down 1243 | -10/Materials | Discovered new exit (range 14) 1298 | -10/Materials | Reached level 4 1371 | -10/Materials | Discovered new exit (range 16) 1738 | -10/Materials | Upgraded with Propulsion slot (x1) 2267 | -10/Materials | Entered Subcaves 2269 | -10/Subcaves | Reached level 5 2278 | -10/Subcaves | A swath of the cavern ceiling suddenly collapsed 2679 | -10/Subcaves | Visited 4L-MR0's lab 2869 | -10/Subcaves | Disturbed a concealed Subdweller 2990 | -10/Subcaves | Discovered new exit (range 8) 3070 | -10/Subcaves | Shifting Twisted Machinery released Sub. Shrapnel Launcher 3078 | -10/Subcaves | Shifting Twisted Machinery released Sub. Laser 3151 | -10/Subcaves | A swath of the cavern ceiling suddenly collapsed 3179 | -10/Subcaves | Discovered new exit (range 11) 3276 | -10/Subcaves | Shifting Twisted Machinery released Spk. Treads 3291 | -10/Subcaves | Shifting Twisted Machinery released Slug Cannon 3362 | -10/Subcaves | Learned location of Zion (-6) 3785 | -10/Subcaves | Build established: Hauler-Mutant 5067 | -10/Subcaves | Found Arachnoskeleton 6178 | -10/Subcaves | Met a Zionite searching for "candidates" 6584 | -10/Subcaves | Discovered new exit (range 14) 6597 | -10/Subcaves | Ambushed by Subdweller buried in earth 6628 | -10/Subcaves | Destroyed 7 combat bots 6691 | -10/Subcaves | Learned Materials interactive machine intel 6695 | -10/Subcaves | Visited Clippyterm 7192 | -10/Subcaves | Entered Recycling 7194 | -9/Recycling | Reached level 6 7194 | -9/Recycling | Found Scrap Engine 7583 | -9/Recycling | Build established: Hauler-Construct 7758 | -9/Recycling | Upgraded with Power slot (x1) 7758 | -9/Recycling | Upgraded with Propulsion slot (x1) 7784 | -9/Recycling | Reached level 7 7843 | -9/Recycling | Upgraded with Utility slot (x1) 8972 | -9/Recycling | Discovered new exit (range 5) 9163 | -9/Recycling | Reached level 8 9165 | -9/Recycling | Upgraded with Propulsion slot (x1) 10921 | -9/Recycling | Identified exit to Factory 11318 | -9/Recycling | Entered Factory 11320 | -7/Factory | Reached level 9 11321 | -7/Factory | Upgraded with Utility slot (x1) 11447 | -7/Factory | Core integrity fell below 50% 11517 | -7/Factory | Identified exit to Garrison 11517 | -7/Factory | Reached level 10 11517 | -7/Factory | Upgraded with Weapon slot (x1) 11574 | -7/Factory | Entered Garrison 11606 | -7/Garrison | Triggered checkpoint 11657 | -7/Garrison | Garrison Relay disabled 12063 | -7/Garrison | Triggered checkpoint 12065 | -7/Garrison | Reached level 11 12067 | -7/Garrison | Triggered checkpoint 12075 | -7/Garrison | Triggered checkpoint 12083 | -7/Garrison | Triggered checkpoint 12084 | -7/Garrison | Core integrity fell below 20% 12114 | -7/Garrison | Reached level 12 12121 | -7/Garrison | Destroyed by S-27 Virus with Autogun Last Messages --------------- 12075_ B-48 Gladiator unfolds itself. 12075_ G-47 Trooper unfolds itself. 12075_ G-47 Trooper destroyed. 12083_ B-48 Gladiator destroyed. 12085_ Dropped Protomatter-38. 12088_ G-47 Trooper destroyed. 12095_ Used Protomatter to restore core integrity (+114, depleted) 12101_ G-47 Trooper destroyed. 12105_ Dropped Med. Matter Pod. 12106_ Extracted 100 matter. 12106_ Destroyed Aluminum Leg. 12111_ S-27 Virus destroyed. 12111_ Switching to secondary target: G-47 Trooper. 12111_ Slug penetrates G-47 Trooper. 12114_ Protomatter-2 decays. 12114_ Slug penetrates G-47 Trooper. 12114_ Reached level 12. 12114_ G-47 Trooper destroyed. 12117_ Slug penetrates S-27 Virus. 12117_ S-27 Virus destroyed. Map ----- +----------------------------------------------------+ | ?????????????????????????????????????????????????? | | ?????????????????????????????????????????????????? | | ?????????????????????????????????????????????????? | | ?????????????????????????????????????????????????? | | ?????????????????????????????????????????????????? | | ?????????????????????????????????????????????????? | | ?????????????????????????????????????????????????? | | ?????????????????????????????????????????????????? | | ?????????????????????????????????????????????????? | | ?????????????????????????????????????????????????? | | ?????????????????????????????????????????????????? | | ????????????????????#????????????????????????????? | | ????????????????? ?# ?????????????????????????? | | ??????????????? ## ?????????????????????????? | | ????????????? ?????????????????????????? | | ????????????? ?????????????????????????? | | ???????????? ?????????????????????????? | | ???????????? ?????????????????????????? | | ??????????? ?????????????????????????? | | ??????????? % %% "????????????????????????? | | ?????????? "????????????????????????? | | ?????????? "????????????????????????? | | ?????????? ==="????????????????????????? | | ?????????# %%s#####????????????????????? | | ????????? =%* ;#######??????????????? | | ????????? =* @ ^^ #??????????????? | | ????????? ^ #??????????????? | | ?????????" * ;;#### #??????????????? | | ?????????? # # # ###??# #??????????????? | | ??????????????# ??# ###????# #??????????????? | | ??????????????#????## #???????# #??????????????? | | ????????????????????###????????# #??????????????? | | ???????????????????????????????# #??????????????? | | ???????????????????????????????# #??????????????? | | ???????????????????????????????# #??????????????? | | ???????????????????????????????# #??????????????? | | ???????????????????????????????# #??????????????? | | ???????????????????????????????# #??????????????? | | ???????????????????????????????# #??????????????? | | ???????????????????############# #??????????????? | | ???????????????????#""""""""""## #??????????????? | | ???????????????????#"""!!!!!!"## #??????????????? | | ???????????????????#"" ## #??????????????? | | ???????????????????#"! ## #???????#####??? | | ???????????????????#" ## #???????# #??? | | ???????????????????#" / ## ######### #### | | ???????????????????#" /|! | | ???????????????????#"" !!! | | ???????????????????#""" !"#################### | | ???????????????????#""""""""""#??????????????????? | +----------------------------------------------------+ Best States ------------- Heat Dissipation 55 Energy Generation 16 Energy Capacity 250 Matter Stores 650 Matter Capacity 650 Sight Range 16 Terrain Scan Range 16 Terrain Scan Density 210 Additional Mass Support 6 Armor Coverage 900 Resistance: TH 10 Propulsion Shielding 33 Weapon Shielding 33 Evasion (%) 40 Targeting Accuracy 5 Recoil Reduction 2 Authchip Count 8 Item Schematics ----------------- Insulated Plating | -9/Recycling | Hacked Plasma Cutter | -9/Recycling | Hacked Robot Schematics ------------------ None Fabricated ------------ Nothing Alien Tech Used ----------------- None Achievements -------------- None Challenges ------------ None RPGLIKE | -11 -10 -10 -9 -7 -7 --------- Run | Jun Mat Sub Rec Fac Gar Levels Raised 11 | . 3 1 3 2 2 XP Earned 19682 | 3000 5834 1414 3861 2394 3179 XP Spent 15800 | 2500 4790 600 4980 2930 . Upgrades 32 | 5 9 1 13 4 . Power Slot 1 | . . . 1 . . Propulsion Slot 3 | . 1 . 2 . . Utility Slot 5 | 2 1 . 1 1 . Weapon Slot 2 | 1 . . . 1 . Core Integrity 4 | . . . 4 . . Heat Dissipation 5 | . . . 4 1 . Energy Generation 1 | . . . . 1 . Inventory Capacity 1 | . 1 . . . . Terrain Scan Density 2 | . 2 . . . . Ranged Accuracy 4 | . 2 1 1 . . KI Damage % 4 | 2 2 . . . . Protomatter Created 704 | . 180 203 161 69 91 Integrity Restored 1662 | . 513 444 369 93 243 Core 1619 | . 470 444 369 93 243 Parts 43 | . 43 . . . . Protomatter Decayed 143 | . 7 114 20 . 2 Game ------ Seed RocketControlLeg Manual? 1 Play Time 01:08:29 Cumulative 567.7 hours Start 2023.11.07 @ 01:23:38 End 2023.11.07 @ 02:31:18 Sessions 1 Manual Loads 0 Difficulty Rogue Special Mode Winter2019/RPGLIKE Game No. 583 Rogue 583 Adventurer 0 Explorer 0 Win Type - Total 1 Types 1/0/0/0/0/0/0/0/0 Lore% 69 Gallery% 84 Achievement% 68 Wizard Run 0 Options --------- ASCII 0 Keyboard 0 Movement Mouse Keybinds 0 Fullscreen 2 Font 36/Smallcaps Map View 76x50 Tactical HUD 1 Map Filters NONE Filters NONE Steam X RUN: a92883f5-9cb6-4b4e-9746-24d5884a1cfa